bitfinex/quotes_SOLUSD_20251103
["timestamp","ask_amount","ask_price","bid_price","bid_amount"]
[1762172409989,5.39302544,176.74,176.69,21.61469121]
[1762172410387,0.67,176.73,176.69,21.61469121]
[1762172411587,0.67,176.73,176.7,1.8059867]
[1762172412015,0.67,176.73,176.71,5.6589893]
[1762172412214,0.67,176.73,176.71,7.464976]
[1762172412418,0.67,176.73,176.71,5.6589893]
[1762172412712,0.67,176.73,176.71,7.464976]
[1762172413086,0.67,176.73,176.71,5.6589893]
[1762172414302,0.67,176.73,176.71,7.464976]
[1762172414706,0.67,176.73,176.71,5.6589893]
[1762172418326,4.72302544,176.72,176.7,19.80758347]
[1762172418694,5.43302544,176.72,176.7,19.80758347]
[1762172418916,5.43302544,176.72,176.7,21.61357017]
[1762172419820,0.71,176.71,176.7,19.80758347]
[1762172420199,3.82027929,176.71,176.7,21.61357017]
[1762172424123,3.82027929,176.71,176.7,19.80758347]
[1762172424710,3.82027929,176.71,176.7,21.61357017]
[1762172424912,4.53027929,176.71,176.7,19.80758347]
[1762172425727,4.53027929,176.71,176.7,5.65930956]
[1762172426729,9.25330473,176.71,176.7,5.65930956]
[1762172429026,9.25330473,176.71,176.7,7.46529626]
[1762172429703,3.82027929,176.71,176.7,7.46529626]
[1762172433104,3.82027929,176.71,176.7,5.65930956]
[1762172433311,3.82027929,176.71,176.7,7.46529626]
[1762172440523,3.82027929,176.71,176.7,12.1883217]
[1762172441036,3.82027929,176.71,176.7,10.382335]
[1762172444333,0.68,176.76,176.7,54.63314343]
[1762172444512,0.68,176.76,176.75,1.8059867]
[1762172446318,0.68,176.76,176.75,2.82060227]
[1762172446521,0.68,176.76,176.75,8.47831089]
[1762172448630,0.68,176.77,176.75,22.62258246]
[1762172448830,0.68,176.78,176.76,2.82060227]
[1762172449130,0.68,176.77,176.75,22.62258246]
[1762172449337,0.68,176.77,176.75,19.80198019]
[1762172449519,0.68,176.77,176.75,22.62258246]
[1762172450037,0.68,176.77,176.76,8.47799081]
[1762172451553,0.68,176.77,176.76,5.65738854]
[1762172451734,0.68,176.77,176.74,5.65802874]
[1762172451934,0.68,176.77,176.75,2.82060227]
[1762172452146,0.68,176.77,176.74,5.65802874]
[1762172452324,0.68,176.77,176.74,8.47863101]
[1762172452525,0.68,176.77,176.75,2.82060227]
[1762172453424,0.68,176.77,176.76,5.65738854]
[1762172456229,4.49256941,176.77,176.76,5.65738854]
[1762172460465,4.49256941,176.77,176.74,2.82060227]
[1762172460669,4.49256941,176.76,176.74,2.82060227]
[1762172460839,3.81256941,176.75,176.74,8.47863101]
[1762172461037,4.49256941,176.75,176.74,8.47863101]
[1762172461249,3.81256941,176.75,176.74,8.47863101]
[1762172461479,4.49256941,176.75,176.74,8.47863101]
[1762172461755,0.68,176.8,176.77,20.592]
[1762172461965,0.68,176.8,176.79,2.82060227]
[1762172462558,0.68,176.8,176.77,26.93461999]
[1762172462741,0.68,176.8,176.77,20.592]
[1762172463052,2.82060227,176.78,176.74,21.73191303]
[1762172463254,2.82060227,176.78,176.75,5.65770862]
[1762172463436,0.68,176.77,176.75,5.65770862]
[1762172464045,2.82060227,176.76,176.72,5.65866908]
[1762172464246,2.82060227,176.76,176.72,19.80534178]
[1762172464448,0.68,176.77,176.72,19.80534178]
[1762172464449,0.68,176.75,176.72,19.80534178]
[1762172465443,0.68,176.75,176.72,22.62594405]
[1762172466831,0.68,176.75,176.72,19.80534178]
[1762172467259,0.68,176.75,176.72,5.65866908]
[1762172468165,0.68,176.75,176.72,8.47927135]
[1762172468355,0.68,176.75,176.72,22.62594405]
[1762172468557,0.68,176.75,176.74,2.82060227]
[1762172468755,5.44623891,176.79,176.74,2.82060227]
[1762172468939,4.76623891,176.79,176.76,2.82060227]
[1762172469143,0.68,176.78,176.76,2.82060227]
[1762172469349,0.68,176.78,176.77,5.6570685]
[1762172469857,0.68,176.78,176.77,8.47767077]
[1762172470165,3.50060227,176.78,176.73,20.592]
[1762172470469,0.68,176.77,176.73,29.07093885]
[1762172470856,0.68,176.77,176.73,19.80420881]
[1762172471163,5.44623891,176.77,176.73,22.62481108]
[1762172471461,5.44623891,176.77,176.73,8.47893885]
[1762172471667,4.76623891,176.75,176.73,8.47893885]
[1762172472166,0.68,176.74,176.73,8.47893885]
[1762172472567,0.68,176.74,176.71,26.25074229]
[1762172472865,0.68,176.74,176.7,5.65921059]
[1762172473073,0.68,176.74,176.7,8.47981286]
[1762172473264,0.68,176.74,176.71,2.82060227]
[1762172473464,0.68,176.74,176.72,5.65866908]
[1762172473769,3.81555673,176.73,176.72,5.65866908]
[1762172474269,4.50555673,176.73,176.72,5.65866908]
[1762172474968,3.81555673,176.73,176.72,8.47927135]
[1762172480400,5.45623891,176.79,176.75,20.592]
[1762172480602,0.69,176.79,176.78,2.82060227]
[1762172480761,0.69,176.79,176.78,8.47735077]
[1762172481984,0.69,176.79,176.78,2.82060227]
[1762172482153,0.69,176.79,176.77,2.82060227]
[1762172482779,0.69,176.79,176.77,8.4775173]
[1762172482978,0.69,176.79,176.77,5.65691503]
[1762172484158,0.69,176.79,176.78,2.82060227]
[1762172484961,0.69,176.81,176.78,8.47717262]
[1762172485274,29.75522226,176.85,176.79,2.82060227]
[1762172485275,0.69,176.8,176.79,2.82060227]
[1762172486179,0.69,176.8,176.78,8.47717262]
[1762172487560,0.69,176.8,176.75,14.14404283]
[1762172487765,0.69,176.8,176.76,8.47775291]
[1762172487978,5.45623891,176.8,176.76,8.47775291]
[1762172488173,0.69,176.8,176.76,8.47775291]
[1762172488375,0.67,176.79,176.76,8.47775291]
[1762172488590,0.67,176.79,176.77,2.82060227]
[1762172489265,0.67,176.79,176.76,22.62122428]
[1762172489774,0.67,176.79,176.76,19.80062201]
[1762172490088,0.67,176.79,176.77,2.82060227]
[1762172490886,0.67,176.79,176.76,19.80062201]
[1762172491290,5.43623891,176.79,176.76,5.65715064]
[1762172491494,5.43623891,176.79,176.76,8.47775291]
[1762172491788,0.67,176.78,176.76,8.47775291]
[1762172492504,3.81394111,176.77,176.76,8.47775291]
[1762172492709,3.81394111,176.77,176.76,5.65715064]
[1762172492992,9.25018002,176.77,176.76,5.65715064]
[1762172493408,4.48394111,176.77,176.76,5.65715064]
[1762172493767,4.48394111,176.77,176.75,5.65770862]
[1762172493969,4.48394111,176.76,176.75,5.65770862]
[1762172495974,4.48394111,176.76,176.72,28.29262241]
[1762172496288,3.81394111,176.75,176.74,2.82060227]
[1762172498297,3.81394111,176.75,176.74,8.47863101]
[1762172498298,4.48394111,176.75,176.74,8.47863101]
[1762172498801,3.81394111,176.75,176.74,8.47863101]
[1762172500401,4.48394111,176.75,176.74,8.47863101]
[1762172500797,3.81394111,176.75,176.74,8.47863101]
[1762172503900,4.52394111,176.75,176.74,8.47863101]
[1762172504290,4.52394111,176.75,176.74,5.65802874]
[1762172504600,4.52394111,176.75,176.74,8.47863101]
[1762172504998,4.52394111,176.75,176.74,2.82060227]
[1762172505200,4.52394111,176.75,176.68,28.29857059]
[1762172505201,4.52394111,176.75,176.69,2.82060227]
[1762172505502,4.76868688,176.73,176.7,5.65930956]
[1762172505703,3.81394111,176.72,176.7,5.65930956]
[1762172505904,3.81394111,176.71,176.7,8.47991183]
[1762172506501,3.81394111,176.71,176.7,7.46527427]
[1762172506882,3.81394111,176.71,176.7,5.65930956]
[1762172507085,3.81394111,176.71,176.7,7.46527427]
[1762172509012,3.81394111,176.71,176.7,5.65930956]
[1762172509184,4.52394111,176.71,176.69,5.6595604]
[1762172509502,3.81394111,176.7,176.69,5.6595604]
[1762172509706,3.81394111,176.7,176.69,7.46552511]
[1762172510207,3.81394111,176.7,176.69,5.6595604]
[1762172511312,3.81394111,176.7,176.69,7.46552511]
[1762172514211,3.81394111,176.7,176.69,5.6595604]
[1762172514419,3.81394111,176.7,176.69,7.46552511]
[1762172515294,4.52394111,176.7,176.69,5.6595604]
[1762172516107,4.52394111,176.7,176.67,19.81094696]
[1762172516311,3.81394111,176.69,176.67,19.81094696]
[1762172516634,3.81394111,176.68,176.67,21.61691167]
[1762172516793,6.32990582,176.68,176.62,5.66187294]
[1762172516994,1.80596471,176.65,176.62,5.66187294]
[1762172517311,0.14216157,176.69,176.6,14.15569438]
[1762172517312,4.52394111,176.64,176.6,14.15569438]
[1762172517513,3.81394111,176.63,176.6,14.15569438]
[1762172517822,0.71,176.64,176.6,14.15569438]
[1762172518002,3.80802846,176.63,176.6,14.15569438]
[1762172518203,3.80539652,176.63,176.6,14.15569438]
[1762172518398,3.80539652,176.65,176.62,1.80596471]
[1762172518716,3.80539652,176.64,176.62,1.80596471]
[1762172519030,4.51539652,176.65,176.62,1.80596471]
[1762172519332,0.71,176.65,176.63,5.66155239]
[1762172520118,4.51539652,176.65,176.63,5.66155239]
[1762172520320,0.71,176.65,176.63,5.66155239]
[1762172520707,4.51539652,176.65,176.6,19.81879954]
[1762172521021,0.71,176.65,176.6,19.81879954]
[1762172521190,3.80539652,176.66,176.6,19.81879954]
[1762172521394,4.51539652,176.67,176.64,1.80596471]
[1762172521592,3.80539652,176.66,176.64,1.80596471]
[1762172521822,3.80539652,176.67,176.64,1.80596471]
[1762172522024,3.80539652,176.66,176.63,1.80596471]
[1762172522324,3.80539652,176.65,176.6,19.81879954]
[1762172522534,1.80596471,176.63,176.56,20.792]
[1762172522736,1.80596471,176.61,176.57,5.66347624]
[1762172523029,1.80596471,176.61,176.56,5.8637145]
[1762172523030,3.80539652,176.6,176.56,5.8637145]
[1762172523233,0.67,176.6,176.56,7.66967921]
[1762172523399,0.67,176.59,176.56,7.66967921]
[1762172523593,0.67,176.59,176.56,5.8637145]
[1762172524021,0.67,176.59,176.53,0.2]
[1762172524022,11.73695397,176.57,176.53,0.2]
[1762172524210,1.80596471,176.54,176.53,0.2]
[1762172524522,0.14216157,176.54,176.53,0.2]
[1762172524817,0.81216157,176.54,176.53,0.2]
[1762172526502,0.67,176.54,176.53,0.2]
[1762172526818,4.47539652,176.56,176.53,5.86475953]
[1762172527037,3.94755809,176.58,176.55,1.80596471]
[1762172527231,30.52298926,176.59,176.55,1.80596471]
[1762172527403,0.14216157,176.57,176.55,1.80596471]
[1762172527608,0.14216157,176.57,176.53,5.86475953]
[1762172527609,0.67,176.56,176.53,5.86475953]
[1762172527813,0.67,176.56,176.54,1.80596471]
[1762172528012,0.14216157,176.57,176.55,1.80596471]
[1762172528219,0.81216157,176.57,176.55,1.80596471]
[1762172529222,0.81216157,176.57,176.55,7.46992884]
[1762172530010,0.81216157,176.57,176.54,7.47037134]
[1762172530224,0.81216157,176.57,176.53,5.86468421]
[1762172530721,0.81216157,176.57,176.53,7.67064892]
[1762172531647,6.4756496,176.57,176.53,7.67064892]
[1762172531811,6.4756496,176.57,176.53,2.00596471]
[1762172532013,0.14216157,176.55,176.53,0.2]
[1762172532328,58.50539652,176.58,176.54,1.80596471]
[1762172532519,0.67,176.57,176.53,5.86455271]
[1762172532822,54.7,176.62,176.54,0.41]
[1762172532823,0.67,176.62,176.54,0.41]
[1762172533029,0.67,176.61,176.54,0.41]
[1762172533725,0.67,176.61,176.6,1.80596471]
[1762172534316,0.67,176.61,176.59,1.80596471]
[1762172534836,0.67,176.61,176.57,19.82186038]
[1762172535007,0.67,176.61,176.6,1.80596471]
[1762172536626,0.67,176.61,176.59,7.46859459]
[1762172537923,0.67,176.61,176.53,49.11579765]
[1762172537924,0.67,176.61,176.55,5.66403129]
[1762172538125,1.80596471,176.57,176.53,5.86446695]
[1762172538533,0.71,176.56,176.53,0.2]
[1762172538736,1.80596471,176.55,176.53,0.2]
[1762172538938,1.80596471,176.54,176.53,0.2]
[1762172539147,1.94812628,176.54,176.53,0.2]
[1762172539325,0.71,176.56,176.53,0.2]
[1762172539525,0.85216157,176.56,176.53,5.86471412]
[1762172539924,1.80596471,176.55,176.53,0.2]
[1762172540442,0.71,176.54,176.53,0.2]
[1762172542131,2.51596471,176.54,176.53,0.2]
[1762172542334,0.71,176.54,176.53,5.86475953]
[1762172544646,3.76882032,176.56,176.53,7.67072424]
[1762172544942,0.71,176.55,176.53,7.67072424]
[1762172545630,0.71,176.55,176.53,5.86475953]
[1762172548919,0.71,176.55,176.53,0.2]
[1762172549126,2.51596471,176.55,176.53,0.2]
[1762172549541,0.66,176.54,176.53,0.2]
[1762172550532,3.77309215,176.56,176.53,7.67072424]
[1762172551052,0.66,176.58,176.54,1.80596471]
[1762172551239,4.43926481,176.58,176.53,21.83262306]
[1762172551670,0.66,176.57,176.53,21.83262306]
[1762172551844,0.66,176.57,176.54,1.80596471]
[1762172552027,0.66,176.57,176.53,21.83262306]
[1762172552227,0.66,176.57,176.53,7.67072424]
[1762172552440,2.46596471,176.57,176.53,5.86475953]
[1762172552632,3.77926481,176.56,176.53,5.86475953]
[1762172552834,6.24522952,176.56,176.53,0.2]
[1762172553034,2.46596471,176.55,176.53,0.2]
[1762172553238,6.24522952,176.55,176.53,0.2]
[1762172553557,0.66,176.54,176.53,0.2]
[1762172555236,4.43926481,176.54,176.53,0.2]
[1762172556437,6.24522952,176.54,176.53,0.2]
[1762172556861,4.43926481,176.54,176.53,0.2]
[1762172557859,3.77926481,176.54,176.53,5.86475953]
[1762172558354,4.43926481,176.54,176.53,5.86475953]
[1762172558751,4.43926481,176.54,176.53,0.2]
[1762172559172,4.43926481,176.54,176.53,5.86475953]
[1762172559358,4.43926481,176.54,176.53,0.2]
[1762172561369,9.20795169,176.54,176.53,0.2]
[1762172562255,9.35011326,176.54,176.53,0.2]
[1762172562460,11.15607797,176.54,176.53,0.2]
[1762172563141,6.38739109,176.54,176.53,0.2]
[1762172565444,4.58142638,176.54,176.53,0.2]
[1762172566372,21.84065743,176.54,176.53,0.2]
[1762172566567,21.84065743,176.54,176.51,0.2]
[1762172566568,1.80596471,176.52,176.51,0.2]
[1762172566740,60.42739109,176.52,176.5,0.2]
[1762172566937,16.22621878,176.51,176.44,5.66762507]
[1762172567269,6.71565284,176.49,176.43,5.66789507]
[1762172567561,10.49491765,176.49,176.43,5.66789507]
[1762172567862,16.22621878,176.49,176.4,0.2]
[1762172568042,25.22342638,176.49,176.45,1.80596471]
[1762172568241,9.39754783,176.49,176.44,8.19336585]
[1762172568546,9.39754783,176.49,176.45,5.66731843]
[1762172569065,9.39754783,176.49,176.46,5.66683802]
[1762172569270,8.54538626,176.49,176.47,5.66661002]
[1762172569574,3.77926481,176.49,176.47,5.66661002]
[1762172569740,4.48926481,176.49,176.47,5.66661002]
[1762172572443,4.48926481,176.49,176.45,8.49776853]
[1762172572678,10.29746978,176.49,176.44,8.49807352]
[1762172572843,7.461924,176.49,176.45,5.66711273]
[1762172573043,4.63142638,176.49,176.45,5.66711273]
[1762172573459,4.63142638,176.49,176.46,5.66693825]
[1762172574150,4.63142638,176.49,176.46,8.49743587]
[1762172575657,4.63142638,176.49,176.46,5.66693825]
[1762172576266,7.461924,176.49,176.46,5.66693825]
[1762172576966,22.91679509,176.49,176.41,2.83049762]
[1762172577170,22.91679509,176.49,176.42,5.66825029]
[1762172577171,43.50879509,176.49,176.42,5.66825029]
[1762172577354,48.27491654,176.49,176.42,5.66825029]
[1762172578467,48.27491654,176.49,176.43,5.66792155]
[1762172578654,82.34491654,176.49,176.42,5.66818271]
[1762172580346,82.34491654,176.49,176.43,5.66793384]
[1762172581179,77.57879509,176.49,176.43,5.66793384]
[1762172581373,35.01225407,176.49,176.44,5.66740721]
[1762172581565,43.50879509,176.49,176.44,5.66740721]
[1762172582461,177.50495152,176.49,176.4,0.2]
[1762172582777,0.14216157,176.44,176.4,3.03049762]
[1762172582959,3.77926481,176.43,176.41,2.83049762]
[1762172583272,3.77926481,176.42,176.41,2.83049762]
[1762172583575,3.77926481,176.42,176.41,3.55049762]
[1762172584373,3.77926481,176.44,176.41,9.21911051]
[1762172584694,4.76286829,176.47,176.43,2.83049762]
[1762172584864,4.76286829,176.47,176.42,0.72]
[1762172584865,3.80696432,176.46,176.42,0.72]
[1762172585191,3.80696432,176.49,176.44,20.592]
[1762172585503,3.80696432,176.48,176.44,20.592]
[1762172585672,3.80696432,176.47,176.44,21.312]
[1762172585872,0.71,176.49,176.44,21.312]
[1762172586072,3.80696432,176.48,176.45,2.83049762]
[1762172586375,3.80696432,176.47,176.46,5.66700668]
[1762172586575,3.80696432,176.48,176.46,5.66700668]
[1762172586770,3.80696432,176.47,176.46,5.66700668]
[1762172586971,3.80696432,176.48,176.46,9.2175043]
[1762172587173,3.80696432,176.5,176.47,2.83049762]
[1762172587398,3.80696432,176.52,176.46,19.83452339]
[1762172587696,3.80696432,176.51,176.47,0.72]
[1762172587884,3.80696432,176.5,176.47,0.72]
[1762172588198,3.80696432,176.49,176.47,0.72]
[1762172588398,3.80696432,176.51,176.48,8.49686208]
[1762172588583,0.71,176.52,176.48,8.49686208]
[1762172588584,3.80696432,176.5,176.49,2.83049762]
[1762172588968,3.80696432,176.51,176.49,2.83049762]
[1762172589173,3.80696432,176.5,176.47,2.83049762]
[1762172589369,3.80696432,176.49,176.46,2.83049762]
[1762172589700,3.80696432,176.48,176.46,2.83049762]
[1762172589906,3.80696432,176.5,176.46,3.55049762]
[1762172590095,3.80696432,176.49,176.47,3.55049762]
[1762172590396,3.80696432,176.48,176.47,6.38668555]
[1762172590595,4.51696432,176.51,176.47,8.49718317]
[1762172590773,3.80696432,176.5,176.47,9.21718317]
[1762172590970,3.80696432,176.49,176.48,0.72]
[1762172591594,6.35304793,176.55,176.48,0.72]
[1762172591595,3.80696432,176.51,176.48,0.72]
[1762172591902,3.80696432,176.54,176.48,0.72]
[1762172592086,3.80696432,176.53,176.5,20.592]
[1762172592286,3.80696432,176.52,176.51,2.83049762]
[1762172592486,3.80696432,176.52,176.51,12.23112188]
[1762172593489,3.80696432,176.52,176.51,5.66540139]
[1762172593796,3.80696432,176.52,176.51,12.93112188]
[1762172594999,7.867292,176.56,176.51,27.09462536]
[1762172595000,3.80696432,176.55,176.51,27.09462536]
[1762172595190,3.80696432,176.54,176.52,0.7]
[1762172595388,0.67,176.58,176.52,0.7]
[1762172595389,3.80696432,176.53,176.52,0.7]
[1762172595591,3.80696432,176.57,176.52,0.7]
[1762172595892,3.80696432,176.56,176.52,0.7]
[1762172596078,3.80696432,176.55,176.52,0.7]
[1762172596279,3.80696432,176.54,176.52,0.7]
[1762172596502,5.43286829,176.57,176.53,6.56572049]
[1762172596805,3.80700526,176.56,176.54,6.56572049]
[1762172597096,3.80700526,176.55,176.54,6.56572049]
[1762172597302,3.80700526,176.55,176.53,12.23048002]
[1762172597498,3.80700526,176.54,176.53,12.23048002]
[1762172598703,3.80700526,176.54,176.52,12.23080093]
[1762172599007,3.80700526,176.53,176.52,12.23080093]
[1762172599799,4.47700526,176.53,176.49,5.6660434]
[1762172600106,4.47700526,176.52,176.49,5.6660434]
[1762172600313,3.80700526,176.51,176.49,5.6660434]
[1762172600482,3.80700526,176.5,176.49,5.6660434]
[1762172600683,3.80700526,176.5,176.49,6.56572049]
[1762172601309,3.80700526,176.52,176.49,6.56572049]
[1762172601606,3.80700526,176.51,176.49,6.56572049]
[1762172601789,3.80700526,176.5,176.49,6.56572049]
[1762172602683,3.80700526,176.5,176.49,12.23176389]
[1762172603404,3.80700526,176.5,176.49,6.56572049]
[1762172603701,3.80700526,176.5,176.48,5.66626446]
[1762172604013,3.80700526,176.49,176.48,12.23198495]
[1762172606189,3.80700526,176.49,176.48,5.66626446]
[1762172606386,4.49700526,176.49,176.48,5.66626446]
[1762172606589,4.49700526,176.49,176.46,5.66691088]
[1762172606787,4.49700526,176.48,176.46,5.66691088]
[1762172606986,3.80700526,176.47,176.44,12.23328729]
[1762172607187,3.80700526,176.46,176.44,12.89328729]
[1762172607389,3.80700526,176.47,176.44,26.40240993]
[1762172607689,3.80700526,176.46,176.45,6.56572049]
[1762172607885,3.80700526,176.48,176.45,6.56572049]
[1762172608219,3.80700526,176.47,176.45,6.56572049]
[1762172608386,3.80700526,176.46,176.45,12.23304834]
[1762172608708,3.80700526,176.46,176.45,5.66732785]
[1762172609008,4.49700526,176.46,176.42,12.23401206]
[1762172609208,3.80700526,176.45,176.43,6.56572049]
[1762172609392,3.80700526,176.44,176.43,0.66]
[1762172609586,3.80700526,176.47,176.43,6.56572049]
[1762172609788,3.80700526,176.46,176.44,6.56572049]
[1762172610006,3.80700526,176.45,176.44,6.56572049]
[1762172610683,3.80700526,176.45,176.44,12.23336954]
[1762172611111,3.80700526,176.45,176.44,5.66764905]
[1762172611734,4.49700526,176.45,176.42,5.66821129]
[1762172611887,4.49700526,176.44,176.4,5.8689341]
[1762172612081,4.49700526,176.44,176.4,6.5289341]
[1762172612082,3.80700526,176.43,176.4,6.5289341]
[1762172612282,3.80700526,176.42,176.41,6.56572049]
[1762172612804,3.80700526,176.42,176.41,12.23433338]
[1762172614220,3.80700526,176.42,176.41,12.89433338]
[1762172614401,59.37799706,176.51,176.41,12.89433338]
[1762172614402,5.45286829,176.52,176.41,23.32978221]
[1762172614606,0.69,176.52,176.5,2.8296371]
[1762172614909,0.69,176.52,176.44,2.8296371]
[1762172614910,0.69,176.51,176.48,5.66606548]
[1762172615122,0.69,176.51,176.49,2.8296371]
[1762172616396,0.14216157,176.52,176.5,2.8296371]
[1762172616606,0.69,176.51,176.49,2.8296371]
[1762172616812,0.69,176.51,176.49,8.49559257]
[1762172617118,0.14216157,176.52,176.49,8.49559257]
[1762172617318,0.69,176.51,176.48,2.8296371]
[1762172617496,0.69,176.51,176.47,8.49632265]
[1762172619725,0.14216157,176.5,176.47,5.66668555]
[1762172620219,0.69,176.49,176.47,5.66668555]
[1762172620804,54.7,176.5,176.47,22.66303653]
[1762172621117,54.7,176.5,176.49,2.8296371]
[1762172621324,55.39,176.5,176.48,2.8296371]
[1762172621504,54.7,176.5,176.48,2.8296371]
[1762172621905,55.39,176.5,176.48,2.8296371]
[1762172622215,55.39,176.5,176.47,8.49632265]
[1762172622928,0.83216157,176.49,176.43,0.66]
[1762172623129,0.83216157,176.49,176.44,2.8296371]
[1762172623304,0.83216157,176.49,176.43,0.66]
[1762172623510,0.83216157,176.49,176.45,2.8296371]
[1762172623703,0.83216157,176.49,176.44,2.8296371]
[1762172624321,5.59502986,176.49,176.44,2.8296371]
[1762172624524,0.83216157,176.49,176.45,5.66732785]
[1762172624827,0.71,176.48,176.45,5.66732785]
[1762172626421,3.81070807,176.47,176.45,5.66732785]
[1762172626747,3.81070807,176.46,176.45,8.49696495]
[1762172626922,3.81070807,176.48,176.45,22.66528458]
[1762172627123,3.81070807,176.47,176.45,22.66528458]
[1762172627425,3.81070807,176.46,176.45,22.66528458]
[1762172627728,3.81070807,176.49,176.45,22.66528458]
[1762172627919,3.81070807,176.48,176.46,0.7]
[1762172628119,3.81070807,176.51,176.47,2.8296371]
[1762172628307,3.81070807,176.5,176.49,1.81053851]
[1762172628506,3.81070807,176.5,176.49,5.6660434]
[1762172630210,3.81070807,176.5,176.48,1.81053851]
[1762172630415,3.81070807,176.49,176.48,1.81053851]
[1762172631518,3.81070807,176.49,176.48,7.47685055]
[1762172633833,3.81070807,176.49,176.48,8.17685055]
[1762172634831,3.81070807,176.49,176.48,7.47685055]
[1762172638017,3.81070807,176.49,176.48,8.17685055]
[1762172638220,3.81070807,176.49,176.48,5.66631204]
[1762172638442,3.81070807,176.49,176.48,7.47685055]
[1762172640340,3.81070807,176.49,176.48,5.66631204]
[1762172640529,4.52070807,176.49,176.48,5.66631204]
[1762172640853,3.81070807,176.49,176.48,5.66631204]
[1762172641223,3.81070807,176.49,176.48,8.17685055]
[1762172641844,3.81070807,176.49,176.48,7.47685055]
[1762172643025,8.16358644,176.54,176.48,7.47685055]
[1762172643026,3.81070807,176.5,176.48,8.17685055]
[1762172643225,3.81070807,176.54,176.49,2.51053851]
[1762172643436,3.81070807,176.53,176.51,1.81053851]
[1762172643730,3.81070807,176.52,176.5,0.7]
[1762172644049,3.81070807,176.51,176.5,0.7]
[1762172644435,3.81070807,176.51,176.5,6.36572237]
[1762172645128,3.81070807,176.51,176.5,8.17626088]
[1762172646331,3.81070807,176.54,176.5,22.34056682]
[1762172646537,3.81070807,176.53,176.5,20.53002831]
[1762172646856,3.81070807,176.52,176.5,20.53002831]
[1762172647064,3.81070807,176.51,176.5,20.53002831]
[1762172647555,3.81070807,176.51,176.5,22.34056682]
[1762172649458,3.81070807,176.51,176.5,21.64056682]
[1762172649649,4.47070807,176.51,176.5,5.66572237]
[1762172649855,4.47070807,176.51,176.49,5.66593544]
[1762172650168,4.47070807,176.5,176.49,5.66593544]
[1762172650554,4.47070807,176.5,176.49,7.47647395]
[1762172651564,4.47070807,176.5,176.49,5.66593544]
[1762172652935,4.47070807,176.5,176.48,5.66631793]
[1762172653148,4.50070807,176.49,176.48,5.66631793]
[1762172655168,6.31124658,176.49,176.46,5.66694464]
[1762172655355,4.50070807,176.48,176.46,5.66694464]
[1762172655538,3.81070807,176.47,176.46,5.66694464]
[1762172655948,4.50070807,176.47,176.46,5.66694464]
[1762172656153,4.50070807,176.47,176.45,85.66721739]
[1762172656455,4.50070807,176.46,176.45,80.0]
[1762172656966,12.12041483,176.46,176.45,74.32359648]
[1762172657547,6.45340815,176.46,176.45,74.32359648]
[1762172657958,4.64286964,176.46,176.45,74.32359648]
[1762172660376,12.12041483,176.46,176.45,74.32359648]
[1762172660659,6.45340815,176.46,176.45,74.32359648]
[1762172661084,21.90924252,176.46,176.45,74.32359648]
[1762172661249,26.67876563,176.46,176.45,74.32359648]
[1762172661650,21.90924252,176.46,176.45,74.32359648]
[1762172661956,26.67876563,176.46,176.45,74.32359648]
[1762172662161,21.90924252,176.46,176.45,74.32359648]
[1762172666873,26.67876563,176.46,176.45,74.32359648]
[1762172667078,21.90924252,176.46,176.45,59.95122101]
[1762172669265,71.90924252,176.46,176.45,59.95122101]
[1762172672270,50.0,176.44,176.4,0.2]
[1762172672472,13.74169733,176.43,176.4,0.2]
[1762172672651,14.46169733,176.43,176.4,0.2]
[1762172672963,0.14216157,176.41,176.4,0.2]
[1762172674856,0.86216157,176.41,176.4,0.2]
[1762172675048,0.14216157,176.41,176.4,0.2]
[1762172675251,3.81070807,176.42,176.4,8.34947275]
[1762172675453,54.7,176.45,176.41,1.81053851]
[1762172675674,0.14216157,176.44,176.42,1.81053851]
[1762172675980,0.86216157,176.44,176.42,1.81053851]
[1762172676157,0.86216157,176.44,176.41,1.81053851]
[1762172676358,4.65958929,176.44,176.4,8.34947275]
[1762172677078,4.65958929,176.44,176.4,5.86889483]
[1762172677272,0.72,176.43,176.4,5.86889483]
[1762172677468,3.93958929,176.44,176.4,6.53889483]
[1762172677778,4.65958929,176.44,176.4,6.53889483]
[1762172677971,3.93958929,176.44,176.4,7.67943334]
[1762172678275,0.14216157,176.44,176.41,2.48053851]
[1762172678666,0.14216157,176.44,176.42,0.67]
[1762172679055,0.72,176.46,176.42,0.67]
[1762172679387,0.14216157,176.45,176.42,6.33815412]
[1762172679900,5.80951366,176.45,176.4,0.2]